[Event "FIDE World Cup O12-B 2024"]
[Site "Batumi"]
[Date "2024.06.29"]
[Round "7.1"]
[White "Ibrahimli, Suat"]
[Black "Qu, Haoming"]
[Result "1/2-1/2"]
[ECO "B01"]
[WhiteElo "1852"]
[BlackElo "1877"]
[Annotator "NA RC"]
[PlyCount "61"]
[EventDate "2024.06.23"]
[EventType "swiss"]
[EventCountry "GEO"]
[SourceTitle "playchess.com"]
[Source "ChessBase"]
[SourceQuality "1"]
[TimeControl "5400+30"]

1. e4 {[%emt 0:00:09]} d5 {[%emt 0:00:23]} 2. exd5 {[%emt 0:00:04]} Qxd5 {[%emt 0:00:07]} 3. Nc3 {[%emt 0:00:11]} Qd8 {[%emt 0:00:56]} 4. d4 {[%emt 0:01:24]} Nf6 {[%emt 0:00:06]} 5. Nf3 {[%emt 0:01:45]} c6 {[%emt 0:00:10]} 6. h3 {[%emt 0:06:14] B01: Scandinavian Defence.} Bf5 {[%emt 0:01:25]} 7. Bf4 {[%emt 0:01:55]} e6 {[%emt 0:01:03]} 8. Bd3 {[%emt 0:05:40]} Bxd3 {[%emt 0:00:34]} 9. Qxd3 {[%emt 0:00:05]} Nd5 {[%emt 0:01:34]} 10. Nxd5 {[%emt 0:00:28]} cxd5 {[%emt 0:00:04]} 11. O-O {[%emt 0:15:29]} Nc6 {[%emt 0:00:41]} 12. c3 {[%emt 0:01:52]} Bd6 {[%emt 0:00:18]} 13. Be3 {[%emt 0:00:31]} h6 {[%emt 0:00:19]} 14. b4 {[%emt 0:00:33]} Rc8 {[%emt 0:00:49]} 15. Nd2 {[%emt 0:01:04]} O-O {[%emt 0:01:36]} 16. Rac1 {[%emt 0:02:24]} Ne7 {[%emt 0:02:00]} 17. a3 {[%emt 0:05:40]} Qd7 {[%emt 0:00:50]} 18. c4 {[%emt 0:01:23]} dxc4 {[%emt 0:00:10]} 19. Nxc4 {[%emt 0:00:08]} Nd5 {[%emt 0:00:17]} 20. Rfd1 {[%emt 0:01:00]} Rc7 {[%emt 0:01:13]} 21. b5 {[%emt 0:09:00]} Rfc8 {[%emt 0:00:57]} 22. a4 $17 {[%emt 0:02:15]} (22. Nxd6 $15 Qxd6 23. Rxc7 Rxc7 (23... Qxc7 24. Rc1 $11) 24. Rc1) 22... Nf4 {[%emt 0:09:55]} 23. Qf1 {[%emt 0:01:31]} Nd5 {[%emt 0:00:28]} 24. Kh1 {[%emt 0:03:55]} Kh8 {[%emt 0:03:11]} 25. Qd3 {[%emt 0:02:35]} b6 {[%emt 0:00:23]} 26. Bd2 {[%emt 0:08:01]} Bf4 {[%emt 0:02:43]} 27. Rc2 {[%emt 0:11:57]} Bxd2 {[%emt 0:00:10]} 28. Ne5 {[%emt 0:00:07]} Qe7 {[%emt 0:03:09]} 29. Rxc7 {[%emt 0:01:20]} Rxc7 {[%emt 0:00:05]} 30. Qxd2 {[%emt 0:00:13]} Qa3 {[%emt 0:00:58]} 31. Ng4 {[%emt 0:02:51]} 1/2-1/2

[Event "FIDE World Cup O12-B 2024"]
[Site "Batumi"]
[Date "2024.06.29"]
[Round "7.2"]
[White "Aadik Theophane Lenin"]
[Black "Gabadadze, Gabriel"]
[Result "1/2-1/2"]
[ECO "E12"]
[WhiteElo "1852"]
[BlackElo "1975"]
[Annotator "NA RC"]
[PlyCount "116"]
[EventDate "2024.06.23"]
[EventType "swiss"]
[EventCountry "GEO"]
[SourceTitle "playchess.com"]
[Source "ChessBase"]
[SourceQuality "1"]
[TimeControl "5400+30"]

1. d4 {[%emt 0:00:33]} Nf6 {[%emt 0:00:05]} 2. c4 {[%emt 0:00:06]} e6 {[%emt 0:00:06]} 3. Nf3 {[%emt 0:00:05]} b6 {[%emt 0:00:04]} 4. a3 {[%emt 0:00:04]} Bb7 {[%emt 0:00:08]} 5. Bf4 {[%emt 0:00:06]} d5 {[%emt 0:02:40]} 6. cxd5 {[%emt 0:00:57]} exd5 {[%emt 0:01:28]} 7. Nc3 {[%emt 0:00:02]} a6 {[%emt 0:03:38]} 8. e3 {[%emt 0:02:54]} Bd6 {[%emt 0:02:36]} 9. Bg3 {[%emt 0:00:41]} O-O {[%emt 0:03:51]} 10. Bd3 {[%emt 0:00:21]} h6 {[%emt 0:02:24]} 11. Ne5 {[%emt 0:13:18]} Ne4 {[%emt 0:06:05]} 12. Nxe4 {[%emt 0:01:05]} dxe4 {[%emt 0:00:14]} 13. Bc4 {[%emt 0:00:08]} Bxe5 {[%emt 0:02:07]} 14. dxe5 {[%emt 0:09:54]} Qe7 {[%emt 0:03:57]} 15. Qg4 {[%emt 0:02:58]} b5 {[%emt 0:06:04]} 16. Bb3 {[%emt 0:03:38]} (16. Ba2 $16) 16... c5 {[%emt 0:03:02]} (16... Nd7 $1 $11 {remains equal.}) 17. Bc2 {[%emt 0:10:21]} Qe6 $14 {[%emt 0:02:14]} (17... Nd7 $11) 18. Qh4 {[%emt 0:11:17]} Qc4 {[%emt 0:05:48]} 19. O-O-O {[%emt 0:12:06]} b4 {[%emt 0:13:13]} 20. Rd8 {[%emt 0:01:04]} Rxd8 {[%emt 0:04:22]} 21. Qxd8+ {[%emt 0:00:18]} Kh7 {[%emt 0:00:00]} 22. Qb6 {[%emt 0:01:38]} Qb5 {[%emt 0:01:45]} 23. Qxb5 {[%emt 0:00:43]} axb5 {[%emt 0:00:01]} 24. axb4 {[%emt 0:00:03]} cxb4 {[%emt 0:02:23]} 25. Rd1 {[%emt 0:00:44]} Ra1+ {[%emt 0:02:25]} 26. Kd2 {[%emt 0:02:07]} Rxd1+ {[%emt 0:05:32]} 27. Kxd1 {[%emt 0:01:01]} Nd7 {[%emt 0:01:18]} 28. e6 {[%emt 0:04:07]} fxe6 {[%emt 0:00:08]} 29. Bd6 {[%emt 0:00:05]} Kg8 {[%emt 0:02:23]} 30. Bxb4 {[%emt 0:00:13]} Bd5 {[%emt 0:01:03]} 31. Bd6 {[%emt 0:00:54]} Nb6 {[%emt 0:03:58]} 32. b3 {[%emt 0:00:31]} Kf7 {[%emt 0:04:49]} 33. Kd2 {[%emt 0:00:38]} Nd7 {[%emt 0:06:30]} 34. Kc3 {[%emt 0:00:46]} e5 {[%emt 0:01:11]} 35. Kb4 {[%emt 0:01:38]} Ke6 {[%emt 0:00:59]} 36. Bc7 {[%emt 0:01:05]} Bc6 {[%emt 0:00:44]} 37. Bd1 {[%emt 0:00:08]} Kd5 {[%emt 0:02:26]} 38. Be2 {[%emt 0:00:41]} g5 {[%emt 0:01:37]} 39. Bxb5 {[%emt 0:02:15]} Bxb5 {[%emt 0:00:11]} 40. Kxb5 {[%emt 0:00:01]} Nc5 {[%emt 0:00:30]} 41. b4 {[%emt 0:01:23]} Nd3 {[%emt 0:00:08]} 42. Ba5 {[%emt 0:00:22]} Nxf2 {[%emt 0:02:55]} 43. Ka6 {[%emt 0:00:10]} Nd3 {[%emt 0:00:14]} 44. b5 {[%emt 0:00:49]} g4 {[%emt 0:02:09]} 45. Ka7 {[%emt 0:00:38]} Nc5 {[%emt 0:01:16]} 46. Bb4 {[%emt 0:00:08]} Nd7 {[%emt 0:01:18]} 47. b6 {[%emt 0:00:05]} Kc4 {[%emt 0:00:13]} 48. Bd6 {[%emt 0:03:17]} Kd3 {[%emt 0:00:36]} 49. b7 {[%emt 0:00:52]} Kxe3 {[%emt 0:00:11]} 50. Ka6 {[%emt 0:00:40]} Kd4 {[%emt 0:00:28]} 51. Kb5 {[%emt 0:04:28]} Kd5 {[%emt 0:00:18]} 52. b8=Q {[%emt 0:02:48]} Nxb8 {[%emt 0:00:04]} 53. Bxb8 {[%emt 0:00:01]} Kd4 {[%emt 0:00:54]} 54. Kc6 {[%emt 0:01:03]} e3 {[%emt 0:00:37]} 55. Ba7+ {[%emt 0:01:50]} Kd3 {[%emt 0:00:24]} 56. Kd5 {[%emt 0:00:04]} e2 {[%emt 0:00:44]} 57. Bf2 {[%emt 0:00:02]} e4 {[%emt 0:00:28]} 58. h4 {[%emt 0:04:33]} h5 {[%emt 0:01:56]} 1/2-1/2

[Event "FIDE World Cup O12-B 2024"]
[Site "Batumi"]
[Date "2024.06.29"]
[Round "7.3"]
[White "Minkhajdarov, Ruslan"]
[Black "Tatvidze, Davit"]
[Result "1-0"]
[ECO "B39"]
[WhiteElo "1921"]
[BlackElo "2000"]
[Annotator "RC"]
[PlyCount "157"]
[EventDate "2024.06.23"]
[EventType "swiss"]
[EventCountry "GEO"]
[SourceTitle "playchess.com"]
[Source "ChessBase"]
[SourceQuality "1"]
[TimeControl "5400+30"]

1. e4 {[%emt 0:00:03]} c5 {[%emt 0:00:03]} 2. Nf3 {[%emt 0:00:10]} Nc6 {[%emt 0:00:05]} 3. d4 {[%emt 0:00:07]} cxd4 {[%emt 0:00:03]} 4. Nxd4 {[%emt 0:00:05]} g6 {[%emt 0:00:02]} 5. c4 {[%emt 0:00:09]} Bg7 {[%emt 0:00:07]} 6. Be3 {[%emt 0:00:08]} Nf6 {[%emt 0:00:10]} 7. Nc3 {[%emt 0:00:06]} Ng4 {[%emt 0:00:10]} 8. Qxg4 {[%emt 0:00:59]} Nxd4 {[%emt 0:01:38]} 9. Qd1 {[%emt 0:00:05]} Ne6 {[%emt 0:00:04]} 10. Qd2 {[%emt 0:05:13]} Qa5 {[%emt 0:00:18]} 11. Rc1 {[%emt 0:06:48]} b6 {[%emt 0:00:12]} 12. b3 {[%emt 0:07:46]} Bb7 {[%emt 0:02:27]} 13. f3 {[%emt 0:02:38]} g5 {[%emt 0:03:29]} 14. Nd5 {[%emt 0:12:44]} Qxd2+ {[%emt 0:02:03]} 15. Kxd2 {[%emt 0:00:12]} Rc8 {[%emt 0:07:02]} 16. Be2 {[%emt 0:02:42]} Bd4 {[%emt 0:08:37]} 17. Rhd1 {[%emt 0:00:58]} Bc5 {[%emt 0:08:37]} 18. Bf1 {[%emt 0:20:45]} h5 {[%emt 0:03:07]} 19. Ke2 {[%emt 0:09:33]} f6 {[%emt 0:23:05]} 20. Kf2 {[%emt 0:04:09]} Kf7 {[%emt 0:03:07]} 21. Nc3 {[%emt 0:03:45]} Bc6 {[%emt 0:00:41]} 22. Nb5 {[%emt 0:00:38]} a6 {[%emt 0:06:06]} 23. Nc3 {[%emt 0:00:09]} a5 {[%emt 0:06:07]} 24. Nd5 {[%emt 0:02:32]} Rb8 {[%emt 0:00:08]} 25. Rc2 {[%emt 0:01:25]} g4 {[%emt 0:05:16]} 26. f4 {[%emt 0:05:26]} h4 {[%emt 0:00:56]} 27. Rdd2 {[%emt 0:07:29]} g3+ {[%emt 0:05:34]} 28. hxg3 {[%emt 0:01:14]} hxg3+ {[%emt 0:00:01]} 29. Kf3 {[%emt 0:00:43]} Rh1 {[%emt 0:03:38]} 30. Rd1 {[%emt 0:00:45]} Bxe3 {[%emt 0:02:55]} 31. Kxe3 {[%emt 0:00:07]} Nc5 {[%emt 0:01:26]} 32. Rcc1 {[%emt 0:02:47]} Rg1 {[%emt 0:00:48]} 33. Nc3 {[%emt 0:01:43]} Rg8 {[%emt 0:02:10]} 34. Rc2 {[%emt 0:00:21]} e6 {[%emt 0:05:25]} 35. Be2 {[%emt 0:01:03]} Rxd1 {[%emt 0:00:19]} 36. Bxd1 {[%emt 0:00:01]} Rh8 {[%emt 0:00:11]} 37. Bf3 {[%emt 0:00:04]} e5 {[%emt 0:01:05]} 38. f5 {[%emt 0:01:12]} d6 {[%emt 0:00:47]} 39. Rd2 {[%emt 0:00:24]} Ke7 {[%emt 0:00:07]} 40. Rb2 {[%emt 0:00:16]} Nd7 {[%emt 0:01:11]} 41. Rb1 {[%emt 0:00:16]} Ba8 {[%emt 0:00:50]} 42. Ne2 {[%emt 0:00:04]} Rg8 {[%emt 0:00:07]} 43. Rh1 {[%emt 0:00:04]} Bc6 {[%emt 0:00:28]} 44. Rh7+ {[%emt 0:00:23]} Kd8 {[%emt 0:00:15]} 45. Rh3 {[%emt 0:00:06]} b5 {[%emt 0:00:19]} 46. cxb5 {[%emt 0:00:56]} Bxb5 {[%emt 0:00:09]} 47. Rxg3 {[%emt 0:00:11]} Rh8 {[%emt 0:00:27]} 48. Nc3 {[%emt 0:00:06]} Bc6 {[%emt 0:00:11]} 49. Rh3 {[%emt 0:00:21]} Rg8 {[%emt 0:00:17]} 50. Rh7 {[%emt 0:00:32]} Kc7 {[%emt 0:00:37]} 51. Kd3 {[%emt 0:02:09]} Rb8 {[%emt 0:00:56]} 52. g4 {[%emt 0:00:18]} Rg8 {[%emt 0:00:44]} 53. Kc4 {[%emt 0:01:09]} Rf8 {[%emt 0:01:43]} 54. a3 {[%emt 0:00:38]} Kc8 {[%emt 0:00:30]} 55. Nd5 {[%emt 0:01:26]} Kb7 {[%emt 0:00:29]} 56. b4 {[%emt 0:00:39]} Ka6 {[%emt 0:00:25]} 57. Nc3 {[%emt 0:01:26]} Nb6+ {[%emt 0:00:16]} 58. Kb3 {[%emt 0:00:24]} a4+ {[%emt 0:00:24]} 59. Kc2 {[%emt 0:00:01]} Bd7 {[%emt 0:00:31]} 60. Be2+ {[%emt 0:00:15]} Kb7 {[%emt 0:00:06]} 61. Bb5 {[%emt 0:00:19]} Kc8 {[%emt 0:00:17]} 62. Bxd7+ {[%emt 0:01:10]} Nxd7 {[%emt 0:00:06]} 63. Nxa4 {[%emt 0:00:04]} Rg8 {[%emt 0:00:10]} 64. Rh4 {[%emt 0:00:35]} Kc7 {[%emt 0:00:06]} 65. Nc3 {[%emt 0:00:07]} Kc6 {[%emt 0:00:22]} 66. Kb3 {[%emt 0:00:14]} Rb8 {[%emt 0:00:27]} 67. Rh6 {[%emt 0:00:32]} Rb7 {[%emt 0:00:31]} 68. Kc4 {[%emt 0:00:27]} Nb6+ {[%emt 0:00:24]} 69. Kd3 {[%emt 0:00:06]} Ra7 {[%emt 0:00:29]} 70. Rxf6 {[%emt 0:00:45]} Rxa3 {[%emt 0:00:06]} 71. Kc2 {[%emt 0:00:10]} Nc4 {[%emt 0:00:22]} 72. g5 {[%emt 0:01:02]} Ne3+ {[%emt 0:00:03]} 73. Kd2 {[%emt 0:00:35]} Nf1+ {[%emt 0:00:18]} 74. Kd3 {[%emt 0:00:12]} Ng3 {[%emt 0:00:07]} 75. Kc4 {[%emt 0:01:31]} Ra1 {[%emt 0:02:14]} 76. b5+ {[%emt 0:00:29]} Kd7 {[%emt 0:01:08]} 77. Kd5 {[%emt 0:00:34]} Nh5 {[%emt 0:02:03]} 78. Rxd6+ {[%emt 0:00:06]} Ke7 {[%emt 0:00:02]} 79. Kxe5 {[%emt 0:00:24]} 1-0

[Event "FIDE World Cup O12-B 2024"]
[Site "Batumi"]
[Date "2024.06.29"]
[Round "7.4"]
[White "Garakhanov, Shamsi"]
[Black "Martinez Flores, Matias"]
[Result "1-0"]
[ECO "D50"]
[WhiteElo "1884"]
[BlackElo "2080"]
[Annotator "NA RC"]
[PlyCount "113"]
[EventDate "2024.06.23"]
[EventType "swiss"]
[EventCountry "GEO"]
[SourceTitle "playchess.com"]
[Source "ChessBase"]
[SourceQuality "1"]
[TimeControl "5400+30"]

1. d4 {[%emt 0:00:02]} d5 {[%emt 0:00:10]} 2. c4 {[%emt 0:00:04]} e6 {[%emt 0:00:04]} 3. Nc3 {[%emt 0:00:04]} Nf6 {[%emt 0:00:04]} 4. Bg5 {[%emt 0:00:05]} Bb4 {[%emt 0:00:29]} 5. e3 {[%emt 0:01:26]} c5 {[%emt 0:00:13]} 6. Bxf6 {[%emt 0:03:47] D50: Queen's Gambit Declined: Dutch-Peruvian Gambit.} Qxf6 {[%emt 0:00:17]} 7. cxd5 {[%emt 0:00:58]} exd5 {[%emt 0:01:24]} 8. Bb5+ {[%emt 0:01:30]} Bd7 {[%emt 0:04:11]} 9. Bxd7+ {[%emt 0:00:32]} Nxd7 {[%emt 0:00:07]} 10. Nge2 {[%emt 0:01:24]} cxd4 {[%emt 0:05:39]} 11. exd4 {[%emt 0:01:07]} O-O {[%emt 0:00:20]} 12. O-O {[%emt 0:00:32]} Nb6 {[%emt 0:03:02]} 13. Qd3 {[%emt 0:01:38]} Rac8 {[%emt 0:02:45]} 14. a3 {[%emt 0:07:46]} Bd6 {[%emt 0:02:30]} 15. b3 {[%emt 0:04:59]} Rc6 {[%emt 0:07:54]} 16. a4 {[%emt 0:06:42]} a5 {[%emt 0:10:45]} 17. Qb5 {[%emt 0:03:25]} Bxh2+ {[%emt 0:59:06]} 18. Kxh2 {[%emt 0:00:15]} Qh4+ {[%emt 0:00:00]} 19. Kg1 {[%emt 0:00:05]} Rh6 {[%emt 0:00:00]} 20. f3 {[%emt 0:01:13]} (20. Nxd5 $2 Qh2#) 20... Qh2+ {[%emt 0:00:00]} 21. Kf2 {[%emt 0:00:16]} Qh4+ {[%emt 0:00:00]} 22. g3 {[%emt 0:01:27]} Qh2+ {[%emt 0:00:00]} 23. Ke1 {[%emt 0:00:14]} Re6 {[%emt 0:00:00]} 24. Kd2 {[%emt 0:00:40]} (24. Nxd5 Nxd5 (24... Qxg3+ $2 {perishes.} 25. Kd2 $18) 25. Kd2 Nc3 26. Kxc3 Rxe2 $19 (26... Qxe2 27. Qxe2 Rxe2 28. b4 $11)) (24. Qxa5 Rfe8 25. Qb5 Nc4 $11) 24... Rfe8 {[%emt 0:00:00]} 25. Qd3 {[%emt 0:01:33]} Re3 {[%emt 0:00:00]} (25... Qh6+ $142 26. f4 Qf6) 26. Qxe3 {[%emt 0:01:21]} Rxe3 {[%emt 0:00:00]} 27. Kxe3 {[%emt 0:00:02]} Qh6+ $18 {[%emt 0:00:00]} 28. Kd3 {[%emt 0:01:03]} Qd6 {[%emt 0:00:00]} 29. Kc2 {[%emt 0:00:14]} Nc8 {[%emt 0:00:00]} 30. Rae1 {[%emt 0:00:38]} Ne7 {[%emt 0:00:00]} 31. g4 {[%emt 0:02:28]} Nc6 {[%emt 0:00:00]} 32. Kb2 {[%emt 0:06:46]} h6 {[%emt 0:00:00]} 33. Rd1 {[%emt 0:03:35]} Nb4 {[%emt 0:00:00]} 34. Rf2 {[%emt 0:03:36]} Qe6 {[%emt 0:00:00]} 35. Rd2 {[%emt 0:03:24]} Qe3 {[%emt 0:00:00]} 36. Nc1 {[%emt 0:00:18]} g6 {[%emt 0:00:00]} 37. Nd1 {[%emt 0:01:26]} Qf4 {[%emt 0:00:00]} 38. Na2 {[%emt 0:04:27]} Nc6 {[%emt 0:03:23]} 39. Ndc3 {[%emt 0:02:19]} Nxd4 {[%emt 0:03:01]} 40. Nxd5 {[%emt 0:00:14]} Qg3 {[%emt 0:00:05]} 41. Nf6+ {[%emt 0:00:59]} Kf8 {[%emt 0:00:33]} 42. Ne4 {[%emt 0:00:12]} Qe5 {[%emt 0:00:05]} 43. Nac3 {[%emt 0:00:11]} f5 {[%emt 0:01:25]} 44. gxf5 {[%emt 0:00:27]} gxf5 {[%emt 0:01:57]} 45. f4 {[%emt 0:00:10]} Qg7 {[%emt 0:02:00]} 46. Nc5 {[%emt 0:00:09]} Ke8 {[%emt 0:01:17]} 47. Rg2 {[%emt 0:01:24]} Qc7 {[%emt 0:00:40]} 48. Rxd4 {[%emt 0:01:00]} Qxc5 {[%emt 0:00:20]} 49. Rd5 {[%emt 0:00:10]} Qc6 {[%emt 0:00:21]} 50. Re2+ {[%emt 0:00:31]} Kf7 {[%emt 0:00:04]} 51. Rxf5+ {[%emt 0:00:11]} Kg6 {[%emt 0:00:04]} 52. Rfe5 {[%emt 0:00:10]} Qc7 {[%emt 0:00:58]} 53. f5+ {[%emt 0:00:11]} Kg5 {[%emt 0:00:32]} 54. f6+ {[%emt 0:00:13]} Kg6 {[%emt 0:00:12]} 55. Re7 {[%emt 0:00:07]} Qd8 {[%emt 0:01:09]} 56. f7 {[%emt 0:00:18]} Qf8 {[%emt 0:00:09]} 57. Rf2 {[%emt 0:00:35]} 1-0

[Event "FIDE World Cup O12-B 2024"]
[Site "Batumi"]
[Date "2024.06.29"]
[Round "7.5"]
[White "Diaz Guerrero, Jesus Daniel"]
[Black "Zhang, Haoxuan(Zj)"]
[Result "0-1"]
[ECO "B47"]
[WhiteElo "2032"]
[BlackElo "1907"]
[Annotator "RC"]
[PlyCount "118"]
[EventDate "2024.06.23"]
[EventType "swiss"]
[EventCountry "GEO"]
[SourceTitle "playchess.com"]
[Source "ChessBase"]
[SourceQuality "1"]
[TimeControl "5400+30"]

1. e4 {[%emt 0:00:30]} c5 {[%emt 0:00:04]} 2. Nf3 {[%emt 0:00:06]} e6 {[%emt 0:00:03]} 3. d4 {[%emt 0:00:20]} cxd4 {[%emt 0:00:04]} 4. Nxd4 {[%emt 0:00:07]} Nc6 {[%emt 0:00:03]} 5. Nc3 {[%emt 0:00:13]} Qc7 {[%emt 0:00:03]} 6. Ncb5 {[%emt 0:00:42]} Qb8 {[%emt 0:00:11]} 7. Bd3 {[%emt 0:00:15]} a6 {[%emt 0:03:12]} 8. Nxc6 {[%emt 0:00:06]} bxc6 {[%emt 0:03:38]} 9. Nd4 {[%emt 0:01:06]} Nf6 {[%emt 0:02:23]} 10. O-O {[%emt 0:05:05]} Qc7 {[%emt 0:01:38]} 11. Nf3 {[%emt 0:13:47]} e5 {[%emt 0:02:31]} 12. Nh4 {[%emt 0:19:24]} d5 {[%emt 0:10:15]} 13. Qf3 {[%emt 0:05:05]} h6 {[%emt 0:05:53]} 14. h3 {[%emt 0:03:33]} Be6 {[%emt 0:06:55]} 15. Re1 {[%emt 0:07:51]} Nd7 {[%emt 0:04:43]} 16. b3 {[%emt 0:12:11]} Bb4 {[%emt 0:01:54]} 17. Rf1 {[%emt 0:00:57]} g6 {[%emt 0:06:37]} 18. Bb2 {[%emt 0:05:27]} Be7 {[%emt 0:06:39]} 19. Qg3 {[%emt 0:00:21]} Bg5 {[%emt 0:01:05]} 20. Bc1 {[%emt 0:13:00]} Bf4 {[%emt 0:02:40]} 21. Bxf4 {[%emt 0:01:54]} exf4 {[%emt 0:00:38]} 22. Qf3 {[%emt 0:00:01]} d4 {[%emt 0:00:41]} 23. Qe2 {[%emt 0:00:54]} Ne5 {[%emt 0:02:34]} 24. Nf3 {[%emt 0:00:40]} Nxf3+ {[%emt 0:00:08]} 25. Qxf3 {[%emt 0:00:04]} Qe5 {[%emt 0:00:11]} 26. Rac1 {[%emt 0:02:35]} O-O {[%emt 0:00:40]} 27. Qe2 {[%emt 0:01:51]} a5 {[%emt 0:01:36]} 28. a4 {[%emt 0:01:42]} Rfd8 {[%emt 0:00:51]} 29. f3 {[%emt 0:00:36]} Rab8 {[%emt 0:01:06]} 30. Rfd1 {[%emt 0:02:06]} Rb4 {[%emt 0:01:03]} 31. Rd2 {[%emt 0:00:09]} Rb6 {[%emt 0:04:36]} 32. Rcd1 {[%emt 0:00:14]} c5 {[%emt 0:02:45]} 33. Bb5 {[%emt 0:00:14]} Rbd6 {[%emt 0:00:38]} 34. Bd3 {[%emt 0:00:51]} g5 {[%emt 0:00:17]} 35. Bc4 {[%emt 0:00:38]} Bc8 {[%emt 0:02:15]} 36. Bd5 {[%emt 0:00:35]} Ba6 {[%emt 0:00:06]} 37. Qe1 {[%emt 0:01:33]} Re8 {[%emt 0:08:46]} 38. Qf2 {[%emt 0:00:32]} Rb6 {[%emt 0:00:24]} 39. Qe1 {[%emt 0:01:11]} Kg7 {[%emt 0:02:24]} 40. Rf2 {[%emt 0:00:17]} Rb4 {[%emt 0:00:10]} 41. Qd2 {[%emt 0:00:19]} Rd8 {[%emt 0:01:07]} 42. Qe1 {[%emt 0:01:36]} h5 {[%emt 0:00:32]} 43. Rc1 {[%emt 0:00:43]} c4 {[%emt 0:02:09]} 44. Rd2 {[%emt 0:00:23]} c3 {[%emt 0:04:26]} 45. Rdd1 {[%emt 0:00:10]} Rd6 {[%emt 0:00:42]} 46. Qf2 {[%emt 0:00:39]} Rg6 {[%emt 0:00:23]} 47. Re1 {[%emt 0:00:45]} g4 {[%emt 0:00:14]} 48. Kh1 {[%emt 0:00:27]} Bc8 {[%emt 0:00:20]} 49. fxg4 {[%emt 0:00:23]} hxg4 {[%emt 0:00:07]} 50. Rg1 {[%emt 0:00:39]} Rh6 {[%emt 0:01:27]} 51. Rcf1 {[%emt 0:00:38]} f3 {[%emt 0:00:06]} 52. Bxf7 {[%emt 0:00:34]} Kxf7 {[%emt 0:00:31]} 53. h4 {[%emt 0:00:00]} Qh8 {[%emt 0:00:46]} 54. g3 {[%emt 0:00:22]} Qe5 {[%emt 0:00:37]} 55. Rd1 {[%emt 0:00:11]} Ba6 {[%emt 0:00:08]} 56. Rge1 {[%emt 0:00:15]} Rd6 {[%emt 0:00:30]} 57. Kg1 {[%emt 0:00:48]} Kg6 {[%emt 0:00:44]} 58. Qh2 {[%emt 0:01:13]} Be2 {[%emt 0:00:17]} 59. Rc1 {[%emt 0:00:37]} Kh5 {[%emt 0:00:07]} 0-1

[Event "FIDE World Cup O12-B 2024"]
[Site "Batumi"]
[Date "2024.06.29"]
[Round "7.6"]
[White "Golikov, Ivan"]
[Black "Batbaatar, Baatar"]
[Result "0-1"]
[ECO "A36"]
[WhiteElo "1723"]
[BlackElo "1724"]
[Annotator "NA RC"]
[PlyCount "124"]
[EventDate "2024.06.23"]
[EventType "swiss"]
[EventCountry "GEO"]
[SourceTitle "playchess.com"]
[Source "ChessBase"]
[SourceQuality "1"]
[TimeControl "5400+30"]

1. c4 {[%emt 0:00:01]} Nf6 {[%emt 0:00:05]} 2. Nc3 {[%emt 0:00:06]} g6 {[%emt 0:00:09]} 3. g3 {[%emt 0:00:13]} Bg7 {[%emt 0:00:06]} 4. Bg2 {[%emt 0:00:05]} c5 {[%emt 0:00:20]} 5. e4 {[%emt 0:00:41]} d6 {[%emt 0:00:07]} 6. Nge2 {[%emt 0:00:11]} Nc6 {[%emt 0:00:09]} 7. d3 {[%emt 0:00:32]} O-O {[%emt 0:00:29]} 8. O-O {[%emt 0:00:27]} a6 {[%emt 0:00:30]} 9. h3 {[%emt 0:03:08]} Rb8 {[%emt 0:00:37]} 10. a4 {[%emt 0:01:20]} Nd4 {[%emt 0:01:23]} 11. Nxd4 {[%emt 0:06:13]} cxd4 {[%emt 0:00:53]} 12. Ne2 {[%emt 0:00:15]} Nd7 {[%emt 0:00:21]} 13. b4 {[%emt 0:02:36]} a5 {[%emt 0:02:39]} 14. Bd2 {[%emt 0:08:28]} axb4 {[%emt 0:03:33]} 15. Bxb4 {[%emt 0:00:08]} Nc5 {[%emt 0:00:22]} 16. Bxc5 {[%emt 0:03:07]} dxc5 {[%emt 0:00:49]} 17. Qb3 {[%emt 0:07:27]} Bd7 {[%emt 0:01:15]} 18. Rfb1 {[%emt 0:01:00]} Bc6 {[%emt 0:01:31]} 19. Qb6 {[%emt 0:18:51]} Qd6 {[%emt 0:11:05]} 20. f4 {[%emt 0:01:55]} e5 {[%emt 0:04:03]} 21. Rb5 {[%emt 0:09:45]} Ra8 {[%emt 0:11:51]} 22. Ra5 {[%emt 0:11:54]} Rxa5 {[%emt 0:08:55]} 23. Qxa5 {[%emt 0:00:03]} f5 {[%emt 0:18:07]} 24. exf5 {[%emt 0:07:16]} Bxg2 {[%emt 0:03:47]} 25. Kxg2 {[%emt 0:00:29]} Qc6+ {[%emt 0:00:17]} 26. Kg1 {[%emt 0:01:38]} Qf3 {[%emt 0:00:26]} 27. Qd2 {[%emt 0:04:55]} Rxf5 {[%emt 0:07:55]} 28. Rf1 {[%emt 0:01:57]} Qc6 {[%emt 0:00:19]} 29. fxe5 {[%emt 0:02:48]} Rxf1+ {[%emt 0:00:59]} 30. Kxf1 {[%emt 0:00:14]} Qf3+ {[%emt 0:00:03]} 31. Ke1 {[%emt 0:02:15]} Qh1+ {[%emt 0:06:29]} 32. Kf2 {[%emt 0:00:04]} Qh2+ {[%emt 0:00:08]} 33. Kf3 {[%emt 0:01:12]} Qxh3 {[%emt 0:00:22]} 34. Nf4 {[%emt 0:02:33]} Qh1+ {[%emt 0:03:19]} 35. Qg2 {[%emt 0:01:38]} Qxg2+ {[%emt 0:00:19]} 36. Kxg2 {[%emt 0:00:07]} Bxe5 {[%emt 0:00:04]} 37. Ne6 {[%emt 0:00:08]} b6 {[%emt 0:02:01]} 38. a5 {[%emt 0:00:44]} bxa5 {[%emt 0:00:09]} 39. Nxc5 {[%emt 0:00:05]} Bd6 {[%emt 0:00:35]} 40. Na4 {[%emt 0:01:40]} h5 {[%emt 0:00:10]} 41. c5 {[%emt 0:01:25]} Bc7 {[%emt 0:00:14]} 42. Kf3 {[%emt 0:01:10]} Kf7 {[%emt 0:00:13]} 43. Ke4 {[%emt 0:00:37]} Bxg3 {[%emt 0:00:07]} 44. Kxd4 {[%emt 0:00:15]} h4 {[%emt 0:00:12]} 45. Ke4 {[%emt 0:00:19]} h3 {[%emt 0:02:18]} 46. Kf3 {[%emt 0:00:09]} Be5 {[%emt 0:00:15]} 47. c6 {[%emt 0:01:23]} Ke6 {[%emt 0:01:15]} 48. Nb6 {[%emt 0:00:32]} Bc7 {[%emt 0:00:09]} 49. Nc8 {[%emt 0:00:26]} a4 {[%emt 0:00:27]} 50. Na7 {[%emt 0:00:33]} a3 {[%emt 0:00:27]} 51. Nb5 {[%emt 0:00:06]} h2 {[%emt 0:02:19]} 52. Kg2 {[%emt 0:00:24]} h1=Q+ {[%emt 0:00:10]} 53. Kxh1 {[%emt 0:00:12]} a2 {[%emt 0:00:04]} 54. Nd4+ {[%emt 0:00:29]} Kd5 {[%emt 0:00:16]} 55. Nc2 {[%emt 0:00:12]} Kc5 {[%emt 0:01:13]} 56. Kg2 {[%emt 0:00:29]} Kb5 {[%emt 0:00:24]} 57. Kf3 {[%emt 0:01:33]} Ka4 {[%emt 0:00:33]} 58. Ke2 {[%emt 0:00:35]} Kb3 {[%emt 0:00:05]} 59. Kd2 {[%emt 0:00:27]} Kb2 {[%emt 0:00:08]} 60. d4 {[%emt 0:00:21]} g5 {[%emt 0:00:08]} 61. d5 {[%emt 0:00:41]} g4 {[%emt 0:00:10]} 62. Nb4 {[%emt 0:00:31]} a1=Q {[%emt 0:00:11]} 0-1